lending/lending_fUSD_20240810
["ID","MTS","AMOUNT","RATE_DAILY","PERIOD"]
[334607986,1723331437954,-453.22992,0.00011186,2]
[334607993,1723331440068,-420.58346586,0.00011186,2]
[334607994,1723331440078,-11870.54638309,0.00011186,2]
[334608088,1723331443630,-6992.24814265,0.00011186,2]
[334608089,1723331443642,-16859.64478972,0.00011186,2]
[334608090,1723331443651,-25318.57627977,0.00011186,2]
[334608091,1723331443661,-15480.914227,0.00011186,2]
[334608092,1723331443670,-9902.3107994,0.00011206,2]
[334608093,1723331443680,-155.0,0.00011206,2]
[334608094,1723331443692,-155.0,0.00011206,2]
[334608095,1723331443701,-10532.64512729,0.00011206,2]
[334608096,1723331443710,-279.35,0.00011622,2]
[334608097,1723331443720,-150.0,0.00011694,2]
[334608098,1723331443729,-250.0,0.00011741,2]
[334608099,1723331443739,-5321.19,0.00011741,2]
[334608100,1723331443749,-530.90490077,0.0001185,2]
[334608101,1723331443759,-9269.56154788,0.0001185,2]
[334608102,1723331443768,-211.68501879,0.0001185,2]
[334608103,1723331443778,-150.99,0.0001185,2]
[334608104,1723331443787,-3285.11133887,0.00011859,2]
[334608105,1723331443797,-546.58278282,0.00011896,2]
[334608106,1723331443808,-3979.10104429,0.00011896,2]
[334608107,1723331443817,-5403.00141948,0.00011896,2]
[334608108,1723331443828,-5403.00141948,0.00011896,2]
[334608109,1723331443837,-303.90469939,0.0001192,2]
[334608110,1723331443848,-1000.0,0.00011936,2]
[334608111,1723331443859,-2835.67566949,0.00011959,2]
[334608112,1723331443871,-3403.93215577,0.00011959,2]
[334608113,1723331443881,-600.0,0.00012,2]
[334608114,1723331443893,-23684.27,0.00012059,2]
[334608115,1723331443905,-166.99,0.00012098,2]
[334608116,1723331443914,-1111.44827464,0.00012121,2]
[334608117,1723331443922,-321.84,0.00012236,2]
[334608118,1723331443932,-255.0,0.00012236,2]
[334608119,1723331443945,-5000.0,0.0001236,2]
[334608120,1723331443954,-2502.21177786,0.00012391,2]
[334608121,1723331443963,-3031.93569449,0.00012391,2]
[334608122,1723331443973,-1405.92101915,0.00012391,2]
[334608123,1723331443983,-3081.78080517,0.0001254,2]
[334608124,1723331443995,-1138.96848202,0.0001254,2]
[334608125,1723331444005,-1275.45690478,0.0001254,2]
[334608126,1723331444016,-499.99,0.0001258,2]
[334608127,1723331444027,-1739.33546408,0.00012581,2]
[334608128,1723331444036,-1500.0,0.00012581,2]
[334608129,1723331444045,-2145.62895141,0.00012581,2]
[334608130,1723331444054,-1500.0,0.00012581,2]
[334608131,1723331444063,-2840.69197074,0.00012581,2]
[334608132,1723331444073,-719.8919336,0.00012613,2]
[334608133,1723331444082,-1634.13334679,0.00012613,2]
[334608134,1723331444091,-2840.69197074,0.00012665,2]
[334608135,1723331444100,-1298.06114648,0.00012666,2]
[334608136,1723331444109,-547.75784963,0.00012666,2]
[334608137,1723331444118,-2341.49151467,0.00012666,2]
[334608138,1723331444127,-892.24622414,0.00012681,2]
[334608139,1723331444137,-202.87709383,0.00012681,2]
[334608140,1723331444147,-164.2098542,0.00012681,2]
[334608141,1723331444157,-493.5352918,0.00012681,2]
[334608142,1723331444167,-159.04430489,0.00012681,2]
[334608143,1723331444177,-255.33200676,0.0001269,2]
[334608144,1723331444187,-155.0,0.0001269,2]
[334608145,1723331444196,-532.21011992,0.0001269,2]
[334608146,1723331444206,-476.87846375,0.0001269,2]
[334608147,1723331444215,-594.98831399,0.0001269,2]
[334608148,1723331444224,-485.12336196,0.0001269,2]
[334608149,1723331444233,-155.0,0.0001269,2]
[334608150,1723331444243,-155.42139405,0.0001269,2]
[334608151,1723331444252,-155.0,0.0001269,2]
[334608152,1723331444261,-686.91534467,0.0001269,2]
[334608153,1723331444270,-380.27799084,0.0001269,2]
[334608154,1723331444279,-155.21020262,0.0001269,2]
[334608155,1723331444288,-155.0,0.0001269,2]
[334608156,1723331444297,-380.27799084,0.00012696,2]
[334608157,1723331444306,-205.91135105,0.00012696,2]
[334608158,1723331444315,-347.64612934,0.00012696,2]
[334608159,1723331444325,-270.54243034,0.00012696,2]
[334608160,1723331444335,-155.0,0.00012696,2]
[334608161,1723331444344,-155.0,0.00012696,2]
[334608162,1723331444354,-520.06308044,0.00012696,2]
[334608163,1723331444363,-155.0,0.00012696,2]
[334608164,1723331444372,-155.0,0.00012696,2]
[334608165,1723331444382,-155.0,0.00012696,2]
[334608166,1723331444392,-155.0,0.00012696,2]
[334608167,1723331444402,-653.5618012,0.00012696,2]
[334608168,1723331444412,-357.40219692,0.00012696,2]
[334608169,1723331444421,-357.40219692,0.00012749,2]
[334608170,1723331444431,-328.20287838,0.00012749,2]
[334608171,1723331444442,-197.1107246,0.00012749,2]
[334608172,1723331444451,-159.58732349,0.00012749,2]
[334608173,1723331444460,-962.32288894,0.00012749,2]
[334608174,1723331444470,-167.5332355,0.00012749,2]
[334608175,1723331444480,-297.44821405,0.00012749,2]
[334608176,1723331444489,-165.48748024,0.00012749,2]
[334608177,1723331444499,-155.0,0.00012749,2]
[334608178,1723331444508,-440.02330588,0.00012749,2]
[334608179,1723331444517,-528.84642051,0.00012749,2]
[334608180,1723331444526,-186.61373916,0.00012749,2]
[334608181,1723331444536,-255.15982534,0.00012749,2]
[334608182,1723331444545,-155.0,0.00012749,2]
[334608183,1723331444555,-365.72794415,0.00012818,2]
[334608184,1723331444564,-522.18791968,0.00012818,2]
[334608185,1723331444573,-1074.54001248,0.00012818,2]
[334608186,1723331444582,-419.05748026,0.00012818,2]
[334608187,1723331444591,-155.0,0.00012818,2]
[334608188,1723331444600,-236.3130847,0.00012818,2]
[334608189,1723331444609,-164.35838013,0.00012818,2]
[334608190,1723331444619,-432.42717978,0.00012818,2]
[334608191,1723331444628,-649.76947784,0.00012818,2]
[334608192,1723331444637,-1074.54001248,0.00012818,2]
[334608193,1723331444646,-218.88046172,0.00012818,2]
[334608194,1723331444796,-419.05748026,0.00012818,2]
[334608195,1723331444806,-236.3130847,0.00012818,2]
[334608196,1723331444815,-432.42717978,0.00012818,2]
[334608197,1723331444824,-309.25319094,0.00012818,2]
[334608198,1723331444833,-155.0,0.00012818,2]
[334608199,1723331444842,-158.98147492,0.00012818,2]
[334608200,1723331444851,-155.0,0.00012826,2]
[334608201,1723331444860,-401.30737801,0.00012826,2]
[334608202,1723331444869,-243.21975921,0.00012826,2]
[334608203,1723331444879,-155.0,0.00012826,2]
[334608204,1723331444888,-155.0,0.00012826,2]
[334608205,1723331444902,-401.30737801,0.00012826,2]
[334608206,1723331444911,-179.41438215,0.00012855,2]
[334608207,1723331444920,-264.45526709,0.00012855,2]
[334608208,1723331444929,-155.0,0.00012855,2]
[334608209,1723331444948,-211.03121184,0.00012855,2]
[334608210,1723331444957,-265.3989425,0.00012855,2]
[334608211,1723331444966,-203.38597278,0.00012855,2]
[334608212,1723331444975,-155.0,0.00012855,2]
[334608213,1723331444986,-313.68115763,0.00012855,2]
[334608214,1723331444995,-364.13857336,0.00012883,2]
[334608215,1723331445005,-206.74216899,0.00012883,2]
[334608216,1723331445014,-454.51441887,0.00012883,2]
[334608217,1723331445023,-206.74216899,0.00012883,2]
[334608218,1723331445032,-210.98006387,0.00012883,2]
[334608219,1723331445041,-155.0,0.00012883,2]
[334608220,1723331445050,-210.98006387,0.00012883,2]
[334608221,1723331445059,-250.0,0.00012915,2]
[334608222,1723331445068,-164.3805057,0.00012924,2]
[334608223,1723331445077,-400.0,0.00012995,2]
[334608224,1723331445086,-186.03681997,0.00012995,2]
[334608225,1723331445096,-300.0,0.00013,2]
[334608226,1723331445106,-400.0,0.00013115,2]
[334608227,1723331445115,-210.3427,0.00013197,2]
[334608228,1723331445124,-4490.5451,0.00013298,2]
[334608229,1723331445133,-4063.7892,0.00013298,2]
[334608230,1723331445142,-1000.0,0.00013298,2]
[334608231,1723331445151,-3285.11133879,0.00013308,2]
[334608232,1723331445161,-214.0,0.00013388,2]
[334608233,1723331445170,-1000.0,0.00013428,2]
[334608234,1723331445179,-170.46,0.00013699,2]
[334608235,1723331445189,-200.0,0.00013699,2]
[334608236,1723331445199,-500.0,0.00013699,2]
[334608237,1723331445208,-2751.0,0.00013699,2]
[334608238,1723331445217,-1728.57063365,0.000138,3]
[334608248,1723331445677,-159.96,0.00012,2]
[334608249,1723331445687,-159.96,0.00012,2]
[334608250,1723331445696,-159.96,0.00012,2]
[334608251,1723331445706,-159.96,0.00012,2]
[334608252,1723331445715,-159.96,0.00012,2]
[334608253,1723331445725,-723.30312401,0.00012666,2]
[334608254,1723331445735,-359.36487156,0.00012696,2]
[334608255,1723331445744,-330.1548184,0.00012749,2]
[334608256,1723331445753,-364.13857336,0.00012855,2]
[334608257,1723331445763,-164.3805057,0.00012883,2]
[334608258,1723331445772,-8149.44469807,0.000138,3]
[334608259,1723331445783,-835.97661551,0.000138,3]
[334608260,1723331445799,-159.96,0.00012,2]
[334608261,1723331445809,-135.87098699,0.000138,3]
[334608262,1723331445820,-2982.142246,0.000138,3]
[334608263,1723331445854,-347.64612934,0.0001269,2]
[334608264,1723331445864,-4780.54925118,0.000138,3]
[334608265,1723331445873,-164.29,0.00013973,2]
[334608266,1723331445882,-155.47,0.00013973,2]
[334608267,1723331445893,-171.63,0.00013973,2]
[334608268,1723331445907,-650.0,0.00014,2]
[334608269,1723331445917,-166.99,0.00014362,2]
[334608270,1723331445927,-18612.5544314,0.00014386,3]
[334608271,1723331445937,-400.0,0.00014754,2]
[334608272,1723331445947,-1948.31134332,0.00014757,2]
[334608281,1723331597604,500.0,0.00024932,120]
[334608282,1723331603323,196.59,9.746e-05,2]
[334608284,1723331645550,3316.79603201,9.746e-05,2]
[334608287,1723331657502,159.25383382,0.00010986,2]
[334608288,1723331690653,449.50211901,0.00010986,2]
[334608289,1723331703726,-408.14579779,0.0001106,2]
[334608290,1723331703750,-80.85420221,0.00011086,2]
[334608291,1723331709292,388.0912422,0.00025,60]
[334608292,1723331818794,500.0,0.00025,60]
[334608294,1723332099367,2000.0,0.00010997,2]
[334608295,1723332156675,449.25749888,0.00010997,2]
[334608296,1723332171215,195.11,9.086e-05,2]
[334608297,1723332199469,500.0,0.00024932,120]
[334608298,1723332238265,1148.36,0.0001088,2]
[334608299,1723332266927,216.65,0.00010902,2]
[334608301,1723332308512,194667.38338571,0.00011,2]
[334608303,1723332367116,240.0,0.00010535,2]
[334608304,1723332370920,250.0,0.00010959,2]
[334608306,1723332403089,250.0,0.00010521,2]
[334608311,1723332411345,535.86,0.00010959,2]
[334608321,1723332461836,2006.26,0.0001052,2]
[334608322,1723332478910,550.0,0.0001,2]
[334608323,1723332482483,3700.0,0.00027,120]
[334608324,1723332484211,207800.67825746,0.00011,2]
[334608325,1723332512240,200.0,0.00010507,2]
[334608327,1723332516397,23900.0,0.00010559,2]
[334608328,1723332525505,478.06735107,0.00027,120]
[334608350,1723332565509,4560.1,0.00010539,2]
[334608364,1723332631659,-600.0,0.00011006,2]
[334608366,1723332631669,-150.0,0.00011014,2]
[334608368,1723332631678,-150.0,0.00011104,2]
[334608370,1723332631687,-1181.08675534,0.00011105,2]
[334608372,1723332631823,-8088.47479254,0.00011105,2]
[334608373,1723332631833,-3403.93215577,0.00011105,2]
[334608374,1723332631842,-1739.33546408,0.00011105,2]
[334608375,1723332631852,-719.8919336,0.00011105,2]
[334608376,1723332631862,-3031.93569449,0.00011105,2]
[334608377,1723332631872,-532.21011992,0.00011105,2]
[334608378,1723332631881,-15480.914227,0.00011105,2]
[334608380,1723332631891,-328.20287838,0.00011105,2]
[334608382,1723332631900,-205.91135105,0.00011105,2]
[334608384,1723332631910,-365.72794415,0.00011105,2]
[334608386,1723332631919,-279.35,0.00011157,2]
[334608388,1723332631929,-159.58732349,0.00011161,2]
[334608389,1723332631938,-197.1107246,0.00011161,2]
[334608391,1723332631947,-200.0,0.00011173,2]
[334608393,1723332631957,-200.0,0.00011173,2]
[334608395,1723332631966,-56144.57264451,0.00011176,2]
[334608397,1723332631976,-25318.57627977,0.00011186,2]
[334608399,1723332631985,-2720.03,0.00011186,2]
[334608401,1723332631994,-507.1,0.00011186,2]
[334608403,1723332632003,-321.84,0.00011186,2]
[334608405,1723332632013,-35722.43931546,0.00011186,2]
[334608407,1723332632023,-150.99,0.00011206,2]
[334608409,1723332632034,-167.5332355,0.00011206,2]
[334608411,1723332632043,-155.0,0.00011206,2]
[334608413,1723332632053,-17619.68,0.00011206,2]
[334608415,1723332632063,-499.99,0.00011307,2]
[334608417,1723332632073,-5321.19,0.00011307,2]
[334608419,1723332632082,-499.99,0.00011307,2]
[334608421,1723332632091,-150.99,0.00011307,2]
[334608423,1723332632101,-846.91,0.00011307,2]
[334608425,1723332632110,-155.0,0.00011322,2]
[334608427,1723332632119,-265.3989425,0.00011322,2]
[334608429,1723332632128,-264.45526709,0.00011324,2]
[334608430,1723332632138,-195.11,0.0001135,2]
[334608433,1723332632149,-3368.54,0.00011514,2]
[334608435,1723332632158,-454.51441887,0.00011525,2]
[334608436,1723332632167,-454.51441887,0.00011525,2]
[334608438,1723332632176,-185.04,0.00011535,2]
[334608440,1723332632185,-185.04,0.00011554,2]
[334608442,1723332632194,-185.04,0.00011573,2]
[334608444,1723332632203,-185.04,0.00011593,2]
[334608446,1723332632213,-336.82,0.00011597,2]
[334608448,1723332632221,-400.0,0.0001161,2]
[334608450,1723332632231,-167.58,0.0001161,2]
[334608452,1723332632244,-213.2648,0.0001165,2]
[334608454,1723332632253,-160.0,0.00011661,2]
[334608456,1723332632262,-1031.7107,0.0001175,2]
[334608458,1723332632271,-1000.0,0.0001175,2]
[334608460,1723332632279,-163.14224613,0.0001175,2]
[334608462,1723332632288,-161041.93459163,0.000118,2]
[334608464,1723332632297,-240.0,0.00011852,2]
[334608466,1723332632306,-150.36,0.00012,2]
[334608468,1723332632315,-150.36,0.00012,2]
[334608470,1723332632324,-150.36,0.00012,2]
[334608471,1723332632334,-150.36,0.00012,2]
[334608473,1723332632346,-150.36,0.00012,2]
[334608475,1723332632357,-150.36,0.00012,2]
[334608477,1723332632366,-150.36,0.00012,2]
[334608479,1723332632375,-150.36,0.00012,2]
[334608481,1723332632384,-150.36,0.00012,2]
[334608483,1723332632394,-150.36,0.00012,2]
[334608484,1723332632403,-600.0,0.00012,2]
[334608485,1723332632413,-255.0,0.00012148,2]
[334608486,1723332632424,-3090.28020452,0.0001225,2]
[334608487,1723332632438,-600.0,0.00012381,2]
[334608488,1723332632447,-3120.60802206,0.00012581,2]
[334608489,1723332632457,-9902.3107994,0.00012581,2]
[334608490,1723332632466,-5403.00141948,0.00012581,2]
[334608491,1723332632476,-3979.10104429,0.00012581,2]
[334608492,1723332632485,-9902.3107994,0.00012581,2]
[334608493,1723332632494,-5000.0,0.00012581,2]
[334608494,1723332632504,-327.21851223,0.0001259,2]
[334608495,1723332632514,-3081.78080517,0.00012665,2]
[334608496,1723332632524,-2835.67566949,0.00012681,2]
[334608497,1723332632535,-2502.21177786,0.00012681,2]
[334608498,1723332632544,-2840.69197074,0.00012681,2]
[334608499,1723332632554,-1500.0,0.0001269,2]
[334608500,1723332632565,-1044.46075933,0.0001269,2]
[334608501,1723332632574,-2111.39291129,0.00012749,2]
[334608502,1723332632583,-1634.13334679,0.00012749,2]
[334608503,1723332632592,-2341.49151467,0.00012749,2]
[334608504,1723332632601,-155.0,0.00012774,2]
[334608505,1723332632610,-298.60903379,0.00012818,2]
[334608506,1723332632619,-485.12336196,0.00012826,2]
[334608507,1723332632629,-1074.54001248,0.00012826,2]
[334608508,1723332632638,-962.32288894,0.00012826,2]
[334608509,1723332632647,-892.4875981,0.00012826,2]
[334608510,1723332632655,-485.12336196,0.00012826,2]
[334608511,1723332632665,-1138.96848202,0.00012855,2]
[334608512,1723332632674,-653.5618012,0.00012855,2]
[334608513,1723332632683,-164.3805057,0.00012855,2]
[334608514,1723332632692,-255.15982534,0.00012855,2]
[334608515,1723332632702,-155.0,0.00012855,2]
[334608516,1723332632711,-723.30312401,0.00012855,2]
[334608517,1723332632720,-493.5352918,0.00012855,2]
[334608518,1723332632730,-155.0,0.00012883,2]
[334608519,1723332632740,-1298.06114648,0.00012883,2]
[334608520,1723332632749,-155.0,0.00012883,2]
[334608521,1723332632758,-401.30737801,0.00012883,2]
[334608522,1723332632767,-1298.06114648,0.00012883,2]
[334608523,1723332632776,-202.87709383,0.00012883,2]
[334608524,1723332632785,-649.76947784,0.00012883,2]
[334608525,1723332632795,-520.06308044,0.00012883,2]
[334608526,1723332632804,-218.88046172,0.00012883,2]
[334608527,1723332632814,-432.42717978,0.00012883,2]
[334608528,1723332632823,-359.36487156,0.00012883,2]
[334608529,1723332632833,-155.0,0.00012883,2]
[334608530,1723332632842,-165.48748024,0.00012883,2]
[334608531,1723332632851,-600.66070461,0.00012883,2]
[334608532,1723332632860,-528.84642051,0.00012883,2]
[334608533,1723332632870,-522.18791968,0.00012924,2]
[334608534,1723332632879,-155.0,0.00012924,2]
[334608535,1723332632888,-211.03121184,0.00012924,2]
[334608536,1723332632898,-155.0,0.00012924,2]
[334608537,1723332632907,-155.0,0.00012924,2]
[334608538,1723332632916,-155.0,0.00012924,2]
[334608539,1723332632925,-297.44821405,0.00012924,2]
[334608540,1723332632934,-155.0,0.00012924,2]
[334608541,1723332632944,-476.87846375,0.00012924,2]
[334608542,1723332632953,-211.68501879,0.00012924,2]
[334608543,1723332632962,-309.25319094,0.00012924,2]
[334608544,1723332632971,-155.0,0.00012924,2]
[334608545,1723332632981,-155.42139405,0.00012928,2]
[334608546,1723332632990,-158.98147492,0.00012928,2]
[334608547,1723332632999,-347.64612934,0.00012928,2]
[334608548,1723332633009,-594.98831399,0.00012928,2]
[334608549,1723332633018,-628.55580366,0.00012928,2]
[334608550,1723332633028,-155.0,0.00012928,2]
[334608551,1723332633037,-921.42075982,0.00012928,2]
[334608552,1723332633048,-203.38597278,0.00012928,2]
[334608553,1723332633057,-158.98147492,0.00012928,2]
[334608554,1723332633069,-1275.45690478,0.00012928,2]
[334608555,1723332633078,-19713.95573566,0.00012928,2]
[334608556,1723332633087,-313.68115763,0.00012928,2]
[334608557,1723332633097,-330.1548184,0.00012928,2]
[334608558,1723332633106,-243.21975921,0.00012928,2]
[334608559,1723332633115,-1275.45690478,0.00012928,2]
[334608560,1723332633125,-155.0,0.00012928,2]
[334608561,1723332633134,-270.54243034,0.00012928,2]
[334608562,1723332633144,-155.0,0.00012995,2]
[334608563,1723332633153,-155.0,0.00012995,2]
[334608564,1723332633163,-155.0,0.00012995,2]
[334608565,1723332633172,-236.3130847,0.00012995,2]
[334608566,1723332633182,-155.0,0.00012995,2]
[334608567,1723332633191,-155.0,0.00013,2]
[334608568,1723332633201,-155.0,0.00013,2]
[334608569,1723332633211,-419.05748026,0.00013,2]
[334608570,1723332633221,-440.02330588,0.00013,2]
[334608571,1723332633230,-380.27799084,0.00013,2]
[334608572,1723332633239,-155.0,0.00013,2]
[334608573,1723332633248,-210.98006387,0.00013,2]
[334608574,1723332633257,-400.0,0.00013061,2]
[334608575,1723332633267,-155.0,0.00013066,2]
[334608576,1723332633276,-357.40219692,0.00013066,2]
[334608577,1723332633286,-155.0,0.00013066,2]
[334608578,1723332633296,-160.0,0.00013118,2]
[334608579,1723332633305,-155.0,0.00013125,2]
[334608580,1723332633315,-531.0316463,0.00013133,2]
[334608581,1723332633324,-364.13857336,0.00013165,2]
[334608582,1723332633334,-364.13857336,0.00013165,2]
[334608583,1723332633345,-240.0,0.00013169,2]
[334608584,1723332633356,-4490.5451,0.00013283,2]
[334608585,1723332633365,-335.364,0.00013283,2]
[334608586,1723332633374,-433.0,0.00013291,2]
[334608587,1723332633385,-309.50821429,0.0001331,2]
[334608588,1723332633395,-196.04448385,0.00013373,2]
[334608589,1723332633404,-50167.4291,0.00013383,2]
[334608590,1723332633413,-246.62652231,0.00013407,2]
[334608591,1723332633423,-210.3427,0.0001341,2]
[334608592,1723332633434,-83679.78392656,0.0001341,2]
[334608593,1723332633448,-824.85628951,0.0001341,2]
[334608594,1723332633459,-359.16532702,0.0001341,2]
[334608595,1723332633470,-1782.21903186,0.0001341,2]
[334608598,1723332637818,-206.74216899,0.00011525,2]
[334608599,1723332637828,-1028.5980326,0.00011896,2]
[334608867,1723332640872,-759.35318654,0.00011896,2]
[334608955,1723332643842,-8744.69390815,0.00011896,2]
[334608956,1723332643852,-3120.60802206,0.0001254,2]
[334608957,1723332643861,-5403.00141948,0.0001254,2]
[334608958,1723332643871,-164.35838013,0.00012855,2]
[334608959,1723332643880,-1298.06114648,0.00012855,2]
[334608960,1723332643889,-218.88046172,0.00012883,2]
[334608961,1723332643899,-400.0,0.00012924,2]
[334608962,1723332643909,-347.64612934,0.00012924,2]
[334608963,1723332643919,-155.42139405,0.00012924,2]
[334608964,1723332643929,-594.98831399,0.00012924,2]
[334608965,1723332643939,-155.0,0.00012928,2]
[334608966,1723332643949,-440.02330588,0.00012995,2]
[334608967,1723332643959,-155.0,0.00013066,2]
[334608968,1723332643968,-357.40219692,0.00013066,2]
[334608969,1723332643977,-364.13857336,0.00013133,2]
[334608970,1723332643986,-1111.44827464,0.00013316,2]
[334608971,1723332643996,-100028.02492505,0.0001341,2]
[334608972,1723332644005,-200.0,0.00013473,2]
[334608973,1723332644015,-195.11,0.00013614,2]
[334608974,1723332644024,-3090.28020446,0.00013656,2]
[334608975,1723332644033,-500.0,0.00013699,2]
[334608976,1723332644042,-200.0,0.00013699,2]
[334608977,1723332644052,-2751.0,0.00013699,2]
[334608978,1723332644091,-170.47,0.00013699,2]
[334608979,1723332644101,-600.0,0.00013757,2]
[334608980,1723332644110,-83967.16163069,0.000138,3]
[334608981,1723332644121,-1220.49612,0.000138,3]
[334608982,1723332644137,-11351.42744674,0.000138,3]
[334608984,1723332645848,-980.37258304,0.000138,3]
[334608985,1723332646009,-420.82,0.000138,3]
[334608992,1723332796926,500.0,0.00024932,120]
[334609006,1723333399049,500.0,0.0002558,120]
[334609011,1723333490492,226.56,9.968e-05,2]
[334609053,1723333831848,-161.82628611,0.00011005,2]
[334609054,1723333831858,-159.51748947,0.00011104,2]
[334609055,1723333831870,-140.48251053,0.00011104,2]
[334609056,1723333831880,-586.0,0.00011104,2]
[334609057,1723333831889,-300.0,0.00011104,2]
[334609061,1723333832092,-3979.10104429,0.00011105,2]
[334609063,1723333832102,-3031.93569449,0.00011105,2]
[334609065,1723333832111,-933.66498348,0.00011105,2]
[334609068,1723333832131,-716.18874666,0.00011105,2]
[334609070,1723333832142,-691.63778453,0.00011105,2]
[334609072,1723333832152,-719.8919336,0.00011105,2]
[334609074,1723333832162,-2502.21177786,0.00011105,2]
[334609076,1723333832171,-892.4875981,0.00011105,2]
[334609078,1723333832180,-298.60903379,0.00011105,2]
[334609080,1723333832189,-2835.67566949,0.00011105,2]
[334609082,1723333832198,-600.66070461,0.00011105,2]
[334609083,1723333832207,-1500.0,0.00011105,2]
[334609084,1723333832216,-600.66070461,0.00011105,2]
[334609085,1723333832226,-161.82628605,0.00011119,2]
[334609086,1723333832235,-184.23725183,0.00011161,2]
[334609087,1723333832244,-155.0,0.00011161,2]
[334609088,1723333832254,-476.87846375,0.00011161,2]
[334609089,1723333832263,-649.76947784,0.00011161,2]
[334609090,1723333832273,-150.0,0.00011185,2]
[334609091,1723333832282,-4193.33232881,0.00011186,2]
[334609092,1723333832302,-345.80403217,0.00011186,2]
[334609093,1723333832319,-619.14994573,0.00011186,2]
[334609094,1723333832330,-825.54249811,0.00011186,2]
[334609099,1723333837944,-1700.0,0.00011186,2]
[334609100,1723333837956,-300.0,0.00011186,2]
[334609101,1723333837997,-591.98942285,0.00011186,2]
[334609244,1723333839882,-588.2445,0.00011186,2]
[334609248,1723333840040,-1004.57944751,0.00011186,2]
[334609249,1723333840052,-4250.81740588,0.00011186,2]
[334609250,1723333840063,-3500.0,0.00011186,2]
[334609251,1723333840148,-408.29491154,0.00011186,2]
[334609519,1723333842852,-380.70157287,0.00011186,2]
[334609525,1723333842903,-1262.64508069,0.00011186,2]
[334609532,1723333842958,-3767.59533793,0.00011186,2]
[334609534,1723333842969,-500.0,0.00011186,2]
[334609537,1723333842981,-1079.87979568,0.00011186,2]
[334609539,1723333842990,-315.91948014,0.00011186,2]
[334609581,1723333844026,-177.61581166,0.00011186,2]
[334609582,1723333844036,-155.0,0.00011186,2]
[334609583,1723333844046,-158.98147492,0.00011186,2]
[334609584,1723333844055,-653.5618012,0.00011186,2]
[334609585,1723333844065,-155.0,0.00011186,2]
[334609586,1723333844074,-328.20287838,0.00011186,2]
[334609587,1723333844083,-155.08623708,0.00011186,2]
[334609588,1723333844093,-155.0,0.00011206,2]
[334609589,1723333844102,-197.1107246,0.00011206,2]
[334609590,1723333844111,-265.3989425,0.00011206,2]
[334609591,1723333844120,-182.76844439,0.00011206,2]
[334609592,1723333844132,-1556.56701969,0.00011206,2]
[334609593,1723333844141,-265.3989425,0.00011206,2]
[334609594,1723333844151,-921.42075982,0.00011206,2]
[334609595,1723333844160,-628.55580366,0.00011206,2]
[334609596,1723333844176,-161.82628605,0.00011232,2]
[334609597,1723333844185,-150.0,0.00011288,2]
[334609598,1723333844194,-1352.11,0.00011322,2]
[334609599,1723333844203,-150.99,0.00011322,2]
[334609600,1723333844213,-165.48748024,0.00011322,2]
[334609601,1723333844222,-211.68501879,0.00011322,2]
[334609602,1723333844231,-211.68501879,0.00011322,2]
[334609603,1723333844240,-401.30737801,0.00011322,2]
[334609604,1723333844250,-760.0,0.00011322,2]
[334609605,1723333844259,-150.99,0.00011324,2]
[334609606,1723333844269,-155.0,0.00011324,2]
[334609607,1723333844278,-161.82628605,0.00011346,2]
[334609608,1723333844287,-959.1,0.00011371,2]
[334609609,1723333844297,-860.49,0.00011384,2]
[334609610,1723333844306,-155.0,0.00011384,2]
[334609611,1723333844316,-211.03121184,0.00011384,2]
[334609612,1723333844325,-155.0,0.00011384,2]
[334609613,1723333844335,-532.21011992,0.00011384,2]
[334609614,1723333844344,-454.51441887,0.00011384,2]
[334609615,1723333844353,-161.82628605,0.0001146,2]
[334609616,1723333844362,-723.30312401,0.00011525,2]
[334609617,1723333844371,-161.82628605,0.00011573,2]
[334609618,1723333844381,-2463.28,0.00011626,2]